bitfinex/quotes_ETHUSD_20250625
["timestamp","ask_amount","ask_price","bid_price","bid_amount"]
[1750815584427,0.8017,2462.1,2461.5,4.06246506]
[1750815584633,4.06194282,2461.9,2461.4,4.062683]
[1750815584838,0.8305,2461.8,2461.3,12.74986079]
[1750815585060,0.8305,2461.8,2461.4,4.06264935]
[1750815586428,0.8305,2461.8,2461.3,12.74984011]
[1750815586664,0.8305,2461.8,2461.3,14.38063305]
[1750815586832,0.8305,2461.8,2461.5,4.06255333]
[1750815587029,0.8305,2461.8,2461.4,4.66264772]
[1750815587758,4.89259759,2461.8,2461.4,0.6]
[1750815588429,4.06253766,2461.6,2461.4,0.6]
[1750815588762,4.06273571,2461.4,2460.9,5.9084716]
[1750815588964,4.06273571,2461.4,2460.9,4.0634716]
[1750815589864,0.7768,2461.3,2460.9,4.0634716]
[1750815590652,4.83971017,2461.3,2460.8,4.06365573]
[1750815590848,4.06354331,2461.0,2460.5,1.845]
[1750815591072,4.06354331,2461.0,2460.3,7.6183]
[1750815591266,4.06354331,2461.0,2460.4,4.61422742]
[1750815591449,0.7527,2460.6,2460.1,1.845]
[1750815591651,0.7527,2460.6,2460.2,4.06458165]
[1750815591851,4.06305867,2461.2,2460.2,4.06458165]
[1750815591852,0.7527,2460.8,2460.2,1.68064322]
[1750815592042,0.7527,2460.8,2460.4,4.06437977]
[1750815592247,10.7527,2461.0,2460.6,4.06403294]
[1750815592460,14.81611517,2461.0,2460.5,4.06413665]
[1750815593356,4.06358189,2460.9,2460.4,4.0642934]
[1750815594569,14.81617804,2461.0,2460.4,4.0642934]
[1750815594879,14.81617804,2461.0,2460.5,4.0641815]
[1750815595668,0.7527,2461.0,2460.7,4.06376976]
[1750815596383,0.7527,2461.0,2460.8,4.06369789]
[1750815596882,0.821,2461.2,2460.7,4.0638099]
[1750815597271,0.821,2461.4,2461.0,4.06331045]
[1750815597476,0.821,2461.4,2461.1,4.06321197]
[1750815597967,0.821,2461.4,2461.2,4.06302069]
[1750815598963,0.821,2461.4,2461.1,4.06315025]
[1750815599800,0.821,2461.4,2461.0,4.06334551]
[1750815601211,0.821,2461.4,2461.1,4.06321558]
[1750815602308,4.06237041,2461.7,2460.8,0.55]
[1750815602471,10.0,2461.6,2461.2,4.06298215]
[1750815602799,10.0,2461.6,2461.3,4.06288504]
[1750815605516,0.823,2461.7,2461.4,4.06259659]
[1750815606016,0.823,2461.7,2461.3,4.06280786]
[1750815607417,0.8323,2462.1,2461.7,4.06221034]
[1750815607779,10.8323,2462.1,2461.7,4.06221034]
[1750815607990,4.0619034,2461.9,2460.4,19.80076073]
[1750815608216,4.0619034,2461.9,2460.6,4.06404656]
[1750815608217,0.8297,2461.4,2460.6,4.06404656]
[1750815608420,0.8297,2461.4,2461.0,4.0633375]
[1750815609583,0.7684,2462.1,2461.5,4.06256347]
[1750815609920,0.7684,2462.1,2461.8,4.06197915]
[1750815610105,0.7684,2462.1,2461.8,4.06205496]
[1750815610302,0.2231316,2462.8,2461.9,4.06177364]
[1750815610303,0.7684,2462.4,2461.9,4.06177364]
[1750815610511,0.7684,2462.4,2462.0,4.06169873]
[1750815610896,0.7684,2462.4,2461.8,0.55]
[1750815611097,10.7684,2462.6,2462.2,4.06131613]
[1750815611324,0.7684,2462.6,2462.2,4.06131613]
[1750815611510,14.82917081,2462.6,2462.1,4.06151184]
[1750815612115,14.82917081,2462.6,2461.8,4.06195752]
[1750815612116,4.06126302,2462.3,2461.8,4.06195752]
[1750815612334,0.8302,2462.2,2461.8,4.06195752]
[1750815612821,0.8302,2462.2,2461.7,10.88620547]
[1750815612822,4.89168344,2462.2,2461.7,10.88620547]
[1750815613010,4.89168344,2462.2,2461.7,4.06220547]
[1750815613399,4.89168344,2462.2,2461.6,5.89832168]
[1750815613609,0.8302,2462.2,2461.6,1.836]
[1750815613787,10.7858,2462.4,2462.0,4.06165966]
[1750815613989,0.7858,2462.4,2462.0,4.06165966]
[1750815614420,0.7858,2462.4,2462.1,4.06151699]
[1750815614623,0.7858,2462.4,2462.2,4.06131739]
[1750815615628,0.7858,2462.4,2462.1,4.87380567]
[1750815615930,4.84688718,2462.4,2461.9,4.86472879]
[1750815616136,10.0,2462.3,2461.9,4.06182879]
[1750815617030,0.8136,2462.7,2462.2,0.55]
[1750815617404,0.8136,2462.7,2462.3,4.06118943]
[1750815617733,0.8136,2462.7,2461.6,1.835]
[1750815617734,4.06098838,2462.5,2462.0,4.06171989]
[1750815618535,4.06111735,2462.4,2461.9,4.06184788]
[1750815618922,0.8085,2462.3,2461.9,4.06189005]
[1750815619119,0.8085,2462.3,2461.6,6.6785292]
[1750815619332,14.06152512,2462.2,2461.6,1.835]
[1750815619503,4.06169192,2462.1,2461.6,5.89731843]
[1750815619701,4.06169192,2462.1,2461.6,4.06231843]
[1750815620219,4.06174272,2462.0,2461.6,4.06231843]
[1750815620399,4.06165394,2462.1,2461.6,4.06231843]
[1750815620811,4.06175453,2462.0,2461.5,4.06248076]
[1750815621037,4.06175453,2462.0,2461.5,5.63491736]
[1750815621729,4.88811678,2461.9,2461.4,4.06262101]
[1750815621934,0.8262,2461.9,2461.0,9.4751]
[1750815622135,0.8262,2461.9,2460.8,4.06357483]
[1750815622136,0.8262,2461.3,2460.8,4.06360556]
[1750815622436,4.88917557,2461.3,2460.8,4.06360556]
[1750815622624,4.88917557,2461.3,2460.9,0.89525726]
[1750815622931,4.88917557,2461.3,2460.8,4.06360556]
[1750815622932,4.0635529,2461.0,2460.5,6.4507414]
[1750815623121,4.0635529,2461.0,2460.4,1.835]
[1750815623122,10.0,2461.1,2460.4,1.835]
[1750815623369,4.88916914,2461.3,2460.7,4.06378778]
[1750815623522,4.06219946,2461.8,2461.3,4.06284002]
[1750815623523,10.0,2461.8,2461.3,4.06284002]
[1750815623716,10.7893,2461.9,2461.4,4.06258989]
[1750815624034,10.7893,2461.9,2461.3,4.0628763]
[1750815624240,16.33639669,2461.9,2461.3,4.0628763]
[1750815624615,4.06208188,2461.8,2461.3,4.0628763]
[1750815625536,23.17838424,2461.9,2461.3,4.0628763]
[1750815625834,4.06211825,2461.8,2461.3,4.0628763]
[1750815628342,4.06211825,2461.8,2461.2,4.06297325]
[1750815628643,4.06225495,2461.7,2461.2,4.06297325]
[1750815629043,4.06258954,2461.5,2460.9,2.6414]
[1750815629208,0.8253,2461.4,2461.0,4.06338886]
[1750815629651,0.8253,2461.4,2461.0,4.0633048]
[1750815631658,0.8253,2461.4,2460.7,4.61388426]
[1750815631863,6.829,2461.5,2461.2,4.06305238]
[1750815632166,10.0,2461.6,2461.2,4.06305238]
[1750815632334,6.83,2461.5,2461.2,4.06305238]
[1750815632534,6.83,2461.5,2460.9,4.06350341]
[1750815632864,6.83,2461.5,2461.1,4.06322053]
[1750815633231,6.83,2461.5,2460.9,0.40635034]
[1750815633553,4.062737,2461.4,2460.9,4.0634354]
[1750815633871,4.062737,2461.4,2461.0,4.06338783]
[1750815634055,10.0,2461.4,2461.0,4.06338783]
[1750815635359,4.06248778,2461.6,2461.1,4.0631237]
[1750815635558,16.829,2461.4,2461.0,4.06329668]
[1750815635983,16.823,2461.4,2460.6,0.7784]
[1750815636161,4.06306208,2461.2,2460.7,4.06378999]
[1750815636359,4.06324601,2461.1,2460.6,4.06396234]
[1750815637059,4.06340479,2461.0,2460.5,4.06412355]
[1750815637258,4.06340479,2461.0,2460.5,4.96029261]
[1750815637479,17.00680656,2461.3,2460.5,4.96037619]
[1750815637672,8.675,2461.2,2460.7,4.06373049]
[1750815637849,12.73809516,2461.2,2460.7,4.06373049]
[1750815638181,12.7381432,2461.2,2460.7,4.06373049]
[1750815638347,4.06322627,2461.1,2460.6,4.06398029]
[1750815638546,4.06322627,2461.1,2460.6,4.96641009]
[1750815638748,12.73815134,2461.2,2460.7,4.06388323]
[1750815638980,6.828,2461.1,2460.8,4.06369559]
[1750815639370,6.828,2461.1,2460.7,4.06380021]
[1750815639551,10.89122864,2461.1,2460.7,4.06380021]
[1750815639751,10.89122864,2461.1,2460.6,4.96639339]
[1750815639953,6.828,2461.1,2460.7,4.06387203]
[1750815640279,4.06313665,2461.2,2460.7,4.9669063]
[1750815640583,6.825,2461.1,2460.7,4.9669063]
[1750815640980,10.88824988,2461.1,2460.7,0.90303427]
[1750815641387,4.84047697,2461.3,2460.7,4.96690698]
[1750815641684,6.822,2461.2,2460.9,4.06354055]
[1750815641871,6.82,2461.2,2460.9,4.06354055]
[1750815642451,4.84039473,2461.3,2460.9,4.06354055]
[1750815642661,6.82,2461.2,2460.9,4.06354055]
[1750815643088,10.88307835,2461.2,2460.7,4.8733137]
[1750815643388,10.88307835,2461.2,2460.7,5.76704972]
[1750815643867,6.82,2461.2,2460.8,4.06370234]
[1750815648318,10.88310692,2461.2,2460.8,4.06371198]
[1750815649474,6.82,2461.2,2460.8,4.06371198]
[1750815650105,10.88306766,2461.2,2460.8,4.06371198]
[1750815650316,10.88306766,2461.2,2460.7,4.95753583]
[1750815650900,10.88306766,2461.2,2460.8,4.06370739]
[1750815651200,6.82,2461.2,2460.8,4.06370739]
[1750815651567,0.7775,2461.3,2460.9,4.06344765]
[1750815651895,0.7621,2462.3,2461.2,0.77]
[1750815652088,4.0614916,2462.2,2461.7,4.06212943]
[1750815652282,10.0,2462.1,2461.7,4.06212943]
[1750815652481,10.0,2462.0,2461.6,4.83231861]
[1750815652683,16.808,2462.0,2461.6,0.77]
[1750815652894,20.86982939,2462.0,2461.5,4.06248033]
[1750815653104,0.7944,2461.9,2460.5,0.8214]
[1750815653426,10.7944,2461.3,2460.6,4.40330918]
[1750815653704,10.88606873,2461.2,2460.7,4.06379696]
[1750815655929,6.823,2461.2,2460.8,4.06370846]
[1750815657626,10.88607554,2461.2,2460.7,4.06382046]
[1750815659631,6.823,2461.2,2460.8,4.06370414]
[1750815661207,10.88606643,2461.2,2460.8,4.06370414]
[1750815661505,10.88606643,2461.2,2460.7,4.06382645]
[1750815664443,10.88606643,2461.2,2460.8,4.06369946]
[1750815664742,10.88606643,2461.2,2460.7,4.06380088]
[1750815665040,4.06323361,2461.1,2460.7,4.06387379]
[1750815665434,6.823,2461.2,2460.6,4.06402371]
[1750815665644,14.85738172,2461.3,2460.8,4.06363859]
[1750815665821,14.85738172,2461.3,2460.9,4.06353111]
[1750815666019,6.792,2461.2,2460.9,4.06353111]
[1750815666219,10.7944,2461.3,2460.9,4.06353111]
[1750815666440,6.791,2461.2,2460.9,4.06353111]
[1750815666753,0.7951,2461.5,2460.9,5.64148476]
[1750815666941,0.7951,2461.7,2461.3,4.06287185]
[1750815667109,10.0,2461.6,2461.2,4.06297561]
[1750815667438,6.795,2461.6,2461.1,4.06321425]
[1750815667615,10.85747491,2461.6,2461.1,4.06321425]
[1750815668453,4.06256392,2461.5,2461.1,4.06321425]
[1750815668940,10.85747232,2461.6,2461.1,4.06321425]
[1750815669337,10.85747232,2461.6,2461.2,4.06301407]
[1750815669338,6.795,2461.6,2461.2,4.06301407]
[1750815669642,6.79,2461.6,2461.2,4.06290563]
[1750815670441,16.79,2461.6,2461.2,4.06290563]
[1750815671943,16.788,2461.6,2461.3,4.06289225]
[1750815672318,4.06214741,2461.8,2461.3,4.06289225]
[1750815672519,10.0,2461.6,2461.4,4.06272586]
[1750815673767,6.782,2461.9,2461.6,4.06223836]
[1750815674128,10.0,2462.0,2461.6,4.06223836]
[1750815674454,16.783,2462.0,2461.6,4.06223836]
[1750815674743,10.0,2462.0,2461.6,4.06223836]
[1750815674948,10.0,2462.0,2461.5,4.0624241]
[1750815674949,0.12696324,2461.9,2461.5,4.06248751]
[1750815675148,10.84375386,2462.0,2461.5,4.06248751]
[1750815675315,0.12696411,2461.9,2461.5,4.06248751]
[1750815675521,0.12696233,2461.8,2461.5,5.00604442]
[1750815675718,0.12696373,2461.9,2461.5,5.00604442]
[1750815675954,10.12696373,2461.8,2461.5,5.00604442]
[1750815676155,10.0,2461.9,2461.5,5.00604442]
[1750815676329,0.12696488,2461.8,2461.5,5.00604442]
[1750815676945,0.12696488,2461.8,2461.6,4.06238429]
[1750815677139,10.0,2461.9,2461.6,5.02425896]
[1750815677340,10.0,2461.9,2461.6,4.06238429]
[1750815677951,10.0,2461.9,2461.5,4.06249781]
[1750815689669,0.7628,2461.8,2461.3,0.7604]
[1750815689866,4.06229538,2461.7,2461.3,0.7604]
[1750815690264,4.06229538,2461.7,2461.3,4.82328427]
[1750815690478,0.7628,2461.8,2461.4,4.06270829]
[1750815691912,10.8086,2462.0,2461.5,4.0624597]
[1750815692090,6.767,2461.9,2461.5,4.0624597]
[1750815696281,14.87041747,2462.0,2461.5,4.0624597]
[1750815696595,6.767,2461.9,2461.6,4.06238685]
[1750815697102,6.767,2461.9,2461.5,4.06248551]
[1750815699533,10.82906643,2461.9,2461.4,4.80912492]
[1750815700126,10.82906643,2461.9,2461.4,4.06263259]
[1750815700691,10.82906643,2461.9,2461.5,4.06256026]
[1750815700890,10.82906643,2461.9,2461.4,4.06265002]
[1750815701121,6.767,2461.9,2461.5,4.06252867]
[1750815701788,10.82893069,2461.9,2461.5,4.06252867]
[1750815703121,6.22588799,2461.8,2461.3,4.06281497]
[1750815703289,4.06249082,2461.6,2461.1,1.825]
[1750815703495,6.766,2461.6,2461.0,4.06338886]
[1750815703697,6.63297935,2461.9,2461.0,4.06338886]
[1750815703698,10.773,2461.9,2461.5,4.06256347]
[1750815704023,6.766,2461.8,2461.6,4.06239029]
[1750815705206,6.766,2461.8,2461.4,4.86408074]
[1750815705207,6.766,2461.8,2461.5,4.06248132]
[1750815708339,10.0,2461.9,2461.5,4.06248132]
[1750815708540,16.765,2461.9,2461.5,4.06248132]
[1750815708740,0.773,2462.1,2461.5,0.89266007]
[1750815708929,10.83,2462.3,2461.9,4.06182661]
[1750815709131,10.83,2462.3,2462.0,4.06172426]
[1750815709327,17.595,2462.3,2462.0,4.06172426]
[1750815709534,1.0531316,2462.8,2462.1,0.55]
[1750815709785,1.61152722,2463.8,2463.5,4.05926527]
[1750815709921,0.39176422,2463.8,2463.5,0.40592653]
[1750815710408,0.39176422,2463.8,2463.5,4.46515256]
[1750815710605,0.39176422,2463.8,2463.5,0.40592653]
[1750815710817,0.39176422,2463.8,2463.3,2.5517]
[1750815711019,16.808,2463.7,2463.0,0.7918]
[1750815711222,4.05936584,2463.5,2463.0,4.06005021]
[1750815711413,6.813,2463.4,2462.9,4.06017577]
[1750815711613,10.87245607,2463.4,2462.8,4.06035644]
[1750815711843,6.813,2463.4,2462.9,4.06024638]
[1750815712033,10.0,2463.3,2462.8,4.06035686]
[1750815712419,0.7568,2463.6,2462.9,4.06024619]
[1750815712614,21.62698984,2463.6,2463.0,4.06004695]
[1750815712815,0.39176422,2463.8,2462.9,0.55]
[1750815713046,7.21476422,2463.8,2463.1,0.8024]
[1750815713411,11.27355499,2463.8,2463.2,4.05970945]
[1750815713632,10.39176422,2463.8,2463.3,4.05946101]
[1750815714735,10.39176422,2463.8,2463.2,0.89220857]
[1750815714736,14.45056383,2463.8,2463.2,4.95189709]
[1750815715532,21.28156383,2463.8,2463.2,4.95189709]
[1750815716046,4.05893732,2463.7,2463.2,0.89220857]
[1750815716452,4.05893732,2463.7,2463.1,4.86228372]
[1750815716653,17.22276422,2463.8,2462.3,0.819]
[1750815716654,10.0,2463.3,2462.3,0.819]
[1750815716836,7.653,2463.2,2462.1,1.798]
[1750815717162,7.652,2463.2,2462.2,0.29283219]
[1750815717365,10.0,2463.1,2462.3,0.7994]
[1750815717536,10.0,2463.1,2462.6,4.06067861]
[1750815718144,14.05993153,2463.1,2462.5,4.0607991]
[1750815718557,11.71177462,2463.2,2462.3,0.7994]
[1750815718558,10.825,2463.2,2462.3,0.7994]
[1750815718755,10.825,2463.2,2462.7,4.06045679]
[1750815718961,14.88476751,2463.2,2462.7,4.06045679]
[1750815719166,10.825,2463.2,2462.7,4.06045679]
[1750815719554,14.88477999,2463.2,2462.7,4.06045679]
[1750815719747,14.88477999,2463.2,2462.6,4.06066463]
[1750815720465,14.88477999,2463.2,2462.7,4.06054943]
[1750815720768,4.06028044,2462.9,2462.4,4.06102244]
[1750815721845,4.06028044,2462.9,2462.0,4.06173842]
[1750815721846,4.06064186,2462.7,2462.0,4.06173842]
[1750815722058,6.826,2462.7,2462.0,0.3042899]
[1750815722373,6.826,2462.7,2462.6,4.0607488]
[1750815722578,6.826,2462.7,2462.5,4.0608344]
[1750815722738,6.826,2462.9,2462.5,4.0608344]
[1750815722939,10.0,2463.0,2462.5,4.0608344]
[1750815723138,16.825,2463.0,2462.6,4.060745]
[1750815723444,20.88511405,2463.0,2462.5,4.0608477]
[1750815723869,14.06011405,2463.0,2462.5,4.0608477]
[1750815724048,20.88511405,2463.0,2462.5,4.0608477]
[1750815724246,20.88511405,2463.0,2462.2,4.06129982]
[1750815724247,4.06061262,2462.7,2462.2,4.06129982]
[1750815724577,4.06061262,2462.7,2462.0,1.3089]
[1750815724578,4.06095152,2462.5,2462.0,4.06163018]
[1750815724775,4.06095152,2462.5,2461.9,4.06181904]
[1750815725088,4.06095152,2462.5,2462.0,0.81237541]
[1750815725567,11.69115356,2462.6,2462.0,0.81237541]
[1750815725568,11.69121741,2462.6,2462.1,4.06155066]
[1750815725736,7.6304,2462.6,2462.0,0.81237541]
[1750815725932,4.06102009,2462.5,2462.0,0.81237541]
[1750815726160,4.06102009,2462.5,2462.0,4.87408949]
[1750815726740,4.06124355,2462.3,2462.0,0.81237541]
[1750815726941,4.06124355,2462.3,2461.7,2.5939]
[1750815727169,4.06124355,2462.3,2461.8,4.06205748]
[1750815727371,4.06177081,2462.0,2461.4,0.7593]
[1750815727576,4.06191505,2461.9,2461.3,1.836]
[1750815728143,4.06225488,2461.7,2461.3,0.26458]
[1750815728466,10.88513455,2461.8,2461.3,4.32747275]
[1750815729346,6.823,2461.8,2461.3,4.32747275]
[1750815729551,10.0,2461.9,2461.5,4.0625228]
[1750815729775,16.822,2461.9,2461.6,0.58202252]
[1750815729958,20.88393927,2461.9,2461.6,0.58202252]
[1750815730348,0.7811,2462.1,2461.6,0.58202252]
[1750815730554,17.76815255,2462.9,2461.6,0.55]
[1750815730555,0.8205,2462.4,2461.6,0.55]
[1750815730750,0.8205,2462.4,2461.9,4.06175024]
[1750815730958,10.0,2462.3,2461.9,4.06175024]
[1750815731155,0.8205,2462.4,2461.9,4.06175024]
[1750815731473,10.0,2462.3,2461.6,0.55]
[1750815731656,10.0,2462.3,2461.9,4.06182528]
[1750815732463,6.819,2462.3,2461.9,4.06182528]
[1750815732666,10.8205,2462.4,2461.9,4.06182528]
[1750815732856,16.818,2462.6,2462.2,4.06140564]
[1750815733057,20.87874907,2462.6,2462.1,4.06148673]
[1750815733364,14.06074907,2462.6,2462.1,4.06148673]
[1750815733566,7.6057,2462.7,2462.1,0.89052665]
[1750815733742,7.6067,2462.7,2462.2,4.06132404]
[1750815734075,10.0,2462.6,2462.3,4.06124033]
[1750815736081,10.0,2462.6,2462.1,4.06148414]
[1750815736082,14.06078097,2462.6,2462.1,4.06148414]
[1750815736589,4.8218517,2462.4,2461.9,5.89782062]
[1750815736793,11.6338517,2462.4,2461.9,4.06182062]
[1750815737097,11.6338517,2462.4,2461.9,4.92033994]
[1750815737480,7.5727,2462.4,2462.0,4.06172741]
[1750815738683,7.5727,2462.4,2461.9,4.92033787]
[1750815739085,4.06124438,2462.3,2461.9,0.85851932]
[1750815739873,4.06124438,2462.3,2461.8,4.06198552]
[1750815739874,4.06136461,2462.3,2461.7,0.46125547]
[1750815740097,4.06140849,2462.2,2461.7,4.52341084]
[1750815740894,11.63384368,2462.4,2461.7,4.52341084]
[1750815740895,10.0,2462.3,2461.9,4.06175705]
[1750815741084,17.5727,2462.4,2462.0,4.06173031]
[1750815741298,17.5697,2462.4,2462.0,0.81237838]
[1750815741470,17.5697,2462.4,2461.9,4.06181641]
[1750815741471,21.63080081,2462.4,2461.9,4.06181641]
[1750815741672,21.62980081,2462.4,2461.9,4.06181641]
[1750815741887,14.82180081,2462.4,2461.9,4.06181641]
[1750815742197,21.62880081,2462.4,2461.9,4.06181641]
[1750815742708,10.7607,2462.4,2462.0,4.06173471]
[1750815743002,6.806,2462.3,2462.0,4.87409829]
[1750815744100,0.7801,2462.7,2462.0,0.81236358]
[1750815744304,10.0,2462.5,2462.3,4.06123656]
[1750815744600,4.06058395,2462.7,2462.3,4.06123656]
[1750815744807,10.86258395,2462.7,2462.3,4.06123656]
[1750815745100,6.807,2462.7,2462.3,4.06123656]
[1750815745297,10.0,2462.7,2462.3,4.06123656]
[1750815745498,6.806,2462.7,2462.4,0.40612366]
[1750815745805,6.806,2462.7,2462.1,4.06150426]
[1750815745806,4.0607488,2462.6,2462.1,4.06150426]
[1750815745970,4.06094163,2462.5,2462.0,4.06166113]
[1750815746366,4.06115166,2462.4,2461.9,4.06186811]
[1750815746571,4.06126637,2462.3,2461.8,4.06198787]
[1750815746772,4.06126637,2462.3,2461.9,0.93713141]
[1750815746989,4.06126637,2462.3,2461.8,4.06198787]
[1750815748075,11.658563,2462.4,2461.9,4.06190013]
[1750815748307,4.06125276,2462.3,2461.8,4.06198991]
[1750815749489,11.65857148,2462.4,2461.9,4.06189102]
[1750815749690,11.65857148,2462.4,2461.8,4.06198014]
[1750815749691,4.06125403,2462.3,2461.8,4.06198014]
[1750815749988,4.06125403,2462.3,2461.8,4.99911415]
[1750815750206,11.65852329,2462.4,2461.8,0.93713401]
[1750815750405,4.06143175,2462.2,2461.7,5.30929284]
[1750815750704,4.06143175,2462.2,2461.7,4.52339284]
[1750815752713,4.06132704,2462.3,2461.8,4.06205686]
[1750815752914,4.06142902,2462.2,2461.8,4.06205686]
[1750815753093,4.06142902,2462.2,2461.7,0.46125547]
[1750815753414,4.06159736,2462.1,2461.7,4.52347206]
[1750815754379,4.06149677,2462.2,2461.7,4.52347206]
[1750815754580,4.06149677,2462.2,2461.8,0.85858608]
[1750815755711,14.06133398,2462.3,2461.8,4.92065128]
[1750815756012,10.0,2462.3,2461.9,4.06190082]
[1750815756910,6.784,2462.2,2461.9,4.06190082]
[1750815757315,6.783,2462.2,2461.9,4.06190082]
[1750815759916,10.0,2462.3,2461.9,4.06190082]
[1750815760088,6.778,2462.2,2461.9,4.06190082]
[1750815762813,10.0,2462.3,2461.9,4.06190082]
[1750815763012,6.772,2462.2,2461.9,4.06190082]
[1750815763922,6.771,2462.2,2461.8,4.9205721]
[1750815764235,10.0,2462.3,2461.9,4.06186963]
[1750815764397,6.771,2462.2,2461.9,4.06186963]
[1750815764593,10.0,2462.5,2462.1,4.06155135]
[1750815764909,7.78,2462.7,2462.1,0.8083]
[1750815765106,11.8407137,2462.7,2462.2,4.06136521]
[1750815765340,7.78,2462.7,2462.3,4.06122774]
[1750815765500,10.0,2462.6,2462.3,4.06122774]
[1750815765996,10.0,2462.6,2462.4,4.0610772]
[1750815766196,10.0,2462.7,2462.4,4.0610772]
[1750815767429,0.8,2463.0,2462.4,4.06105278]
[1750815767596,6.771,2463.0,2462.6,4.06064866]
[1750815767922,10.0,2463.0,2462.6,4.06064866]
[1750815768296,10.0,2463.0,2462.5,4.85062841]
[1750815768510,10.0,2463.0,2462.5,5.83110738]
[1750815770132,14.0601206,2463.0,2462.5,5.83110738]
[1750815771337,4.0602603,2462.9,2462.5,1.77027897]
[1750815771702,14.060172,2463.0,2462.5,5.83118602]
[1750815773216,4.06028524,2462.9,2462.5,1.77027897]
[1750815775131,14.06017795,2463.0,2462.5,5.83118634]
[1750815776716,14.06017795,2463.0,2462.6,0.98922507]
[1750815778541,14.06017795,2463.0,2462.5,4.85070737]
[1750815779860,10.0,2463.0,2462.6,4.06069578]
[1750815780741,4.06025417,2462.9,2462.3,0.818]
[1750815781053,4.06025417,2462.9,2462.3,4.87915617]
[1750815781054,10.8294574,2462.8,2462.3,4.87915617]
[1750815781253,4.06074996,2462.6,2462.3,0.818]
[1750815781549,4.06074996,2462.6,2462.1,4.88405815]
[1750815781729,4.06074996,2462.6,2462.2,1.07647957]
[1750815782251,4.06074996,2462.6,2462.2,5.137881]
[1750815782651,4.06102976,2462.5,2462.2,1.07647957]
[1750815782824,4.06102976,2462.5,2462.0,5.88070448]
[1750815782825,10.83002976,2462.5,2462.0,5.88070448]
[1750815783649,6.769,2462.5,2462.1,4.0615505]
[1750815783952,0.8237,2462.7,2462.3,4.06109922]
[1750815784146,6.769,2462.7,2462.4,4.06107862]
[1750815784339,6.769,2462.7,2462.4,4.9531786]
[1750815784719,6.769,2462.7,2462.5,4.06090436]
[1750815785553,10.0,2462.8,2462.4,0.89209998]
[1750815785755,10.0,2462.8,2462.2,4.06133835]
[1750815785756,4.06059634,2462.7,2462.2,4.06133835]
[1750815786054,0.7582,2462.6,2462.2,4.06133835]
[1750815786750,6.769,2462.5,2462.1,4.06155176]
[1750815786930,6.769,2462.5,2462.2,4.06139275]
[1750815787132,4.81838275,2463.0,2462.2,0.55]
[1750815787336,10.0,2462.8,2462.5,4.06089531]
[1750815788458,6.769,2462.9,2462.5,4.06085855]
[1750815788760,10.0,2462.9,2462.7,4.06056178]
[1750815790548,4.05994021,2463.1,2462.7,4.06056178]
[1750815790742,10.0,2462.9,2462.7,4.06056178]
[1750815790933,4.05994021,2463.1,2462.6,4.06067689]
[1750815791132,10.0,2462.9,2462.6,4.06067689]
[1750815793062,10.0,2462.9,2462.5,4.0608273]
[1750815793862,10.0,2462.9,2462.6,4.06073961]
[1750815798264,10.0,2462.9,2462.5,0.89204663]
[1750815798265,10.0,2462.9,2462.5,4.06082987]
[1750815799369,14.06026035,2462.9,2462.4,4.85968461]
[1750815799669,7.5271,2462.8,2462.4,4.06098461]
[1750815799886,11.58753783,2462.8,2462.3,4.06118368]
[1750815800035,11.58753783,2462.8,2461.3,0.8145]
[1750815800036,10.0,2462.4,2461.3,0.8145]
[1750815800232,10.0,2462.5,2461.4,4.06272852]
[1750815800469,6.768,2462.4,2462.1,4.0614409]
[1750815800645,6.768,2462.4,2462.0,4.06159908]
[1750815801362,20.82908027,2462.4,2461.8,0.8145]
[1750815801567,4.06126529,2462.3,2461.8,4.87656148]
[1750815801863,4.06126529,2462.3,2461.8,4.54971763]
[1750815801864,4.82042114,2462.3,2461.8,4.54971763]
[1750815802394,4.061484,2462.2,2461.8,0.48765615]
[1750815802674,6.767,2462.1,2461.7,4.06208308]
[1750815802970,6.767,2462.1,2461.5,4.06247478]
[1750815803753,10.82865598,2462.1,2461.6,4.06236192]
[1750815804680,4.82088035,2462.0,2461.5,4.06248586]
[1750815805479,0.7591,2462.0,2461.7,4.06209544]
[1750815805674,6.767,2461.9,2461.7,4.06209544]
[1750815806282,6.767,2461.9,2461.6,4.06230849]
[1750815806689,6.767,2461.9,2461.7,4.06220934]
[1750815807178,7.5261,2462.0,2461.7,4.06220934]
[1750815808379,10.7591,2462.2,2461.8,4.06205512]
[1750815808681,6.767,2462.0,2461.8,4.06205512]
[1750815809378,10.7591,2462.2,2461.8,4.06205512]
[1750815809587,6.767,2462.1,2461.8,4.06205512]
[1750815810285,10.7591,2462.2,2461.8,4.06205512]
[1750815810487,10.8315,2462.5,2461.8,4.87435732]
[1750815810674,10.0,2462.3,2462.0,4.06168075]
[1750815811458,6.767,2462.2,2462.1,4.06152869]
[1750815811663,16.767,2462.3,2462.1,4.06152869]
[1750815812195,10.0,2462.3,2462.1,4.06152869]
[1750815812395,16.767,2462.3,2462.1,4.06152869]
[1750815812694,16.767,2462.3,2462.0,4.06164852]
[1750815812891,10.0,2462.3,2462.0,4.06164852]
[1750815813063,16.767,2462.3,2462.0,4.06164852]
[1750815813788,16.767,2462.3,2462.1,4.06153191]
[1750815815084,16.767,2462.3,2462.0,4.06164872]
[1750815815388,6.767,2462.2,2461.9,4.06189281]
[1750815817408,6.767,2462.2,2461.8,4.06197336]
[1750815818596,10.0,2462.1,2461.8,4.06197336]
[1750815818797,10.0,2462.1,2461.7,4.06211182]
[1750815818997,10.0,2462.1,2461.7,5.03321295]
[1750815819463,10.0,2462.1,2461.8,4.06205502]
[1750815821904,10.0,2462.1,2461.9,4.06190009]
[1750815822704,10.0,2462.1,2461.9,4.06187819]
[1750815824602,6.765,2462.1,2461.9,4.06187819]
[1750815825600,0.8315,2462.5,2461.9,0.90950388]
[1750815825809,6.765,2462.7,2462.4,4.0609434]
[1750815826112,10.0,2462.6,2462.4,4.0609434]
[1750815826305,10.0,2462.6,2462.3,4.06115889]
[1750815826604,10.0,2462.6,2462.2,4.06134598]
[1750815826605,10.0,2462.6,2462.2,4.06131654]
[1750815826781,4.18785816,2462.5,2461.9,4.06184297]
[1750815826986,10.95311538,2462.4,2461.9,4.06184297]
[1750815827208,0.12694282,2462.3,2461.9,4.06184297]
[1750815827504,10.82617855,2462.4,2461.9,4.06184297]